Workbook

Sheet ConvertibleBond
B2: Convertible Bond Valuation by Binomial Tree | O2: INPUTS
O3: Stock price | P3: 100
O4: Volatility | P4: 0.25
O5: Risk Free Rate | P5: =0.02 -> 0.02
B6: t_0 | D6: t_0+dt | F6: t_0+2*dt | H6: t_0+3*dt | J6: t_0+4*dt | L6: t_0+5*dt | O6: Risky Rate (rfr+cds) | P6: =0.06+rfr -> 0.08
L7: =J9*u -> 349.0342957 | O7: Coupon | P7: 0.06
L8: =M8*L9+(1-L9)*pv -> 3490.342957 | M8: =L7*cr -> 3490.342957 | O8: Maturity (in years) | P8: 5
J9: =H11*u -> 271.8281828 | L9: =IF(M8>=pv,1,0) -> 1 | O9: Conversion ratio | P9: 10
J10: =((p*L8)/(J12))+((1-p)*L12/(J12))+1000*coupon -> 2778.818396 | K10: =J9*cr -> 2718.281828
H11: =F13*u -> 211.7000017 | J11: =(p*(L9)+((1-p)*L13)) -> 1 | L11: =J13*u -> 211.7000017
H12: =((p*J10)/(H14))+((1-p)*J14/(H14))+1000*coupon -> 2236.659387 | I12: =H11*cr -> 2117.000017 | J12: =((1+rfr)*J11)+((1+cs)*(1-J11)) -> 1.02 | L12: =M12*L13+(1-L13)*pv -> 2117.000017 | M12: =L11*cr -> 2117.000017 | O12: MODEL PARAMETERS
F13: =D15*u -> 164.8721271 | H13: =(p*(J11)+((1-p)*J15)) -> 1 | J13: =H15*u -> 164.8721271 | L13: =IF(M12>=pv,1,0) -> 1 | O13: dt | P13: 1
F14: =((p*H12)/(F16))+((1-p)*H16/(F16))+1000*coupon -> 1828.858037 | G14: =F13*cr -> 1648.721271 | H14: =((1+rfr)*H13)+((1+cs)*(1-H13)) -> 1.02 | J14: =((p*L12)/(J16))+((1-p)*L16/(J16))+1000*coupon -> 1709.046715 | K14: =J13*cr -> 1648.721271 | O14: u | P14: =EXP(P4*SQRT(P13)) -> 1.284025417
D15: =B17*u -> 128.4025417 | F15: =(p*(H13)+((1-p)*H17)) -> 0.8576066434 | H15: =F13*d -> 128.4025417 | J15: =(p*(L13)+((1-p)*L17)) -> 1 | L15: =J17*u -> 128.4025417 | O15: d | P15: =1/u -> 0.7788007831
D16: =((p*F14)/(D18))+((1-p)*F18/(D18))+1000*coupon -> 1529.821255 | E16: =D15*cr -> 1284.025417 | F16: =((1+rfr)*F15)+((1+cs)*(1-F15)) -> 1.028543601 | H16: =((p*J14)/(H18))+((1-p)*J18/(H18))+1000*coupon -> 1437.504929 | I16: =H15*cr -> 1284.025417 | J16: =((1+rfr)*J15)+((1+cs)*(1-J15)) -> 1.02 | L16: =M16*L17 -> 1284.025417 | M16: =L15*cr -> 1284.025417 | O16: Probability Up | P16: =(EXP(rfr*P13)-d)/(u-d) -> 0.4778083666
B17: =P3 -> 100 | D17: =(p*(F15)+((1-p)*F19)) -> 0.653496432 | F17: =D15*d -> 100 | H17: =(p*(J15)+((1-p)*J19)) -> 0.727315898 | J17: =H19*u -> 100 | L17: =IF(M16>=pv,1,0) -> 1 | M17: =L17 -> 1
B18: =((p*D16)/(B20))+((1-p)*D20/(B20))+1000*coupon -> 1319.096602 | C18: =B17*cr -> 1000 | D18: =((1+rfr)*D17)+((1+cs)*(1-D17)) -> 1.040790214 | F18: =((p*H16)/(F20))+((1-p)*H20/(F20))+1000*coupon -> 1256.1134 | G18: =F17*cr -> 1000 | H18: =((1+rfr)*H17)+((1+cs)*(1-H17)) -> 1.036361046 | J18: =((p*L16)/(J20))+((1-p)*L20/(J20))+1000*coupon -> 1170.060167 | K18: =J17*cr -> 1000 | O18: Par Value | P18: =1000*(1+P7) -> 1060
B19: =(p*(D17)+((1-p)*D21)) -> 0.4584452985 | D19: =B17*d -> 77.88007831 | F19: =(p*(H17)+((1-p)*H21)) -> 0.4667344073 | H19: =F17*d -> 77.88007831 | J19: =(p*(L17)+((1-p)*L21)) -> 0.4778083666 | L19: =J21*u -> 77.88007831
B20: =((1+rfr)*B19)+((1+cs)*(1-B19)) -> 1.052493282 | D20: =((p*F18)/(D22))+((1-p)*F22/(D22))+1000*coupon -> 1137.952586 | E20: =D19*cr -> 778.8007831 | F20: =((1+rfr)*F19)+((1+cs)*(1-F19)) -> 1.051995936 | H20: =((p*J18)/(H22))+((1-p)*J22/(H22))+1000*coupon -> 1094.338776 | I20: =H19*cr -> 778.8007831 | J20: =((1+rfr)*J19)+((1+cs)*(1-J19)) -> 1.051331498 | L20: =(M20*L21)+((1-L21)*pv) -> 1060 | M20: =L19*cr -> 778.8007831
D21: =(p*(F19)+((1-p)*F23)) -> 0.2799723826 | F21: =D19*d -> 60.65306597 | H21: =(p*(J19)+((1-p)*J23)) -> 0.2283008352 | J21: =H23*u -> 60.65306597 | L21: =IF(M20>=pv,1,0) -> 0
D22: =((1+rfr)*D21)+((1+cs)*(1-D21)) -> 1.063201657 | F22: =((p*H20)/(F24))+((1-p)*H24/(F24))+1000*coupon -> 1045.400672 | G22: =F21*cr -> 606.5306597 | H22: =((1+rfr)*H21)+((1+cs)*(1-H21)) -> 1.06630195 | J22: =((p*L20)/(J24))+((1-p)*L24/(J24))+1000*coupon -> 1041.481481 | K22: =J21*cr -> 606.5306597
F23: =(p*(H21)+((1-p)*H25)) -> 0.1090840492 | H23: =F21*d -> 47.23665527 | J23: =(p*(L21)+((1-p)*L25)) -> 0 | L23: =J25*u -> 47.23665527
F24: =((1+rfr)*F23)+((1+cs)*(1-F23)) -> 1.073454957 | H24: =((p*J22)/(H26))+((1-p)*J26/(H26))+1000*coupon -> 1024.334705 | I24: =H23*cr -> 472.3665527 | J24: =((1+rfr)*J23)+((1+cs)*(1-J23)) -> 1.08 | L24: =(M24*L25)+((1-L25)*pv) -> 1060 | M24: =L23*cr -> 472.3665527
H25: =(p*(J23)+((1-p)*J27)) -> 0 | J25: =H23*d -> 36.78794412 | L25: =IF(M24>=pv,1,0) -> 0
H26: =((1+rfr)*H25)+((1+cs)*(1-H25)) -> 1.08 | J26: =((p*L24)/(J28))+((1-p)*L28/(J28))+1000*coupon -> 1041.481481 | K26: =J25*cr -> 367.8794412
J27: =(p*(L25)+((1-p)*L29)) -> 0 | L27: =J25*d -> 28.65047969
J28: =((1+rfr)*J27)+((1+cs)*(1-J27)) -> 1.08 | L28: =(M28*L29)+((1-L29)*pv) -> 1060 | M28: =L27*cr -> 286.5047969
L29: =IF(M28>=pv,1,0) -> 0
B33: stock price
B34: convertible price
B35: conversion probability
B36: credit-adjusted discount rate
